[Event "European-ch Seniors 2018"]
[Site "Drammen"]
[Date "2018.08.05"]
[Round "2"]
[White "Johnsen, Sylvia"]
[Black "Strutinskaia, Galina"]
[Result "1-0"]
[ECO "B23"]
[WhiteElo "1977"]
[BlackElo "2208"]
[Annotator "NA"]
[PlyCount "87"]
[EventDate "2018.08.04"]
[EventType "swiss"]
[EventCountry "NOR"]
[SourceTitle "playchess.com"]
[Source "ChessBase"]
[SourceQuality "1"]
[TimeControl "40/5400+30:1800+30"]

1. e4 {[%emt 0:00:00]} c5 {[%emt 0:00:00]} 2. Nc3 {[%emt 0:00:04]} a6 {[%emt 0:00:28]} 3. f4 {[%emt 0:00:52]} e6 {[%emt 0:01:47]} 4. Nf3 {[%emt 0:00:45]} b5 {[%emt 0:00:35]} 5. g3 {[%emt 0:02:19]} Bb7 {[%emt 0:02:43]} 6. d3 {[%emt 0:01:20]} d5 {[%emt 0:06:15]} 7. exd5 {[%emt 0:17:29]} exd5 {[%emt 0:00:32]} 8. d4 {[%emt 0:00:41]} c4 {[%emt 0:06:44]} 9. Bg2 {[%emt 0:00:24]} Bd6 {[%emt 0:01:44]} 10. O-O {[%emt 0:01:45]} Ne7 {[%emt 0:00:31]} 11. Kh1 {[%emt 0:05:35]} Nd7 {[%emt 0:00:54]} 12. Ne5 {[%emt 0:01:09]} b4 {[%emt 0:04:23]} 13. Nxd7 {[%emt 0:00:35]} Qxd7 {[%emt 0:00:08]} 14. Ne2 {[%emt 0:01:38]} h5 {[%emt 0:01:59]} 15. Ng1 {[%emt 0:00:18]} O-O-O {[%emt 0:04:10]} 16. c3 {[%emt 0:00:28]} a5 {[%emt 0:01:27]} 17. f5 {[%emt 0:02:18]} f6 {[%emt 0:06:48]} 18. Qc2 {[%emt 0:14:14]} Qc7 {[%emt 0:03:22]} 19. Bf4 {[%emt 0:00:47]} Bxf4 {[%emt 0:00:29]} 20. Rxf4 {[%emt 0:01:19]} h4 {[%emt 0:00:10]} 21. Nh3 {[%emt 0:06:07]} hxg3 {[%emt 0:00:26]} 22. hxg3 {[%emt 0:00:16]} Kb8 {[%emt 0:00:54]} 23. Raf1 {[%emt 0:07:15]} Rh6 {[%emt 0:03:55]} 24. g4 {[%emt 0:10:52]} Rdh8 {[%emt 0:00:26]} 25. R4f3 {[%emt 0:13:44]} Rh4 {[%emt 0:00:58]} 26. Re3 {[%emt 0:00:40]} Nc8 {[%emt 0:05:28]} 27. Qe2 {[%emt 0:02:31]} Bc6 {[%emt 0:00:19]} 28. Kg1 {[%emt 0:00:16]} Rd8 {[%emt 0:07:21]} 29. Nf4 {[%emt 0:00:40]} Rhh8 {[%emt 0:00:07]} 30. Qf3 {[%emt 0:03:15]} Rdg8 {[%emt 0:05:04]} 31. Rfe1 {[%emt 0:01:43]} Ka7 {[%emt 0:03:34]} 32. b3 {[%emt 0:01:08]} cxb3 {[%emt 0:02:51]} 33. axb3 {[%emt 0:00:22]} Rd8 {[%emt 0:01:32]} 34. cxb4 {[%emt 0:00:12]} axb4 {[%emt 0:00:12]} 35. Ra1+ {[%emt 0:01:05]} Kb8 {[%emt 0:01:21]} 36. Ne6 {[%emt 0:01:32]} Qh2+ {[%emt 0:00:20]} 37. Kf2 {[%emt 0:00:11]} Rde8 {[%emt 0:01:51]} 38. Nxg7 {[%emt 0:01:28]} Re4 {[%emt 0:01:30]} 39. Ne6 {[%emt 0:00:18]} Nd6 {[%emt 0:01:44]} 40. Rh1 {[%emt 0:00:00]} Qxh1 {[%emt 0:00:00]} 41. Bxh1 {[%emt 0:00:28]} Kc8 {[%emt 0:05:40]} 42. Bg2 {[%emt 0:00:35]} Rg8 {[%emt 0:00:48]} 43. Rxe4 {[%emt 0:01:14]} dxe4 {[%emt 0:00:32]} 44. Qf4 {[%emt 0:00:33]} 1-0

[Event "European-ch Seniors 2018"]
[Site "Drammen"]
[Date "2018.08.05"]
[Round "2"]
[White "Krohg, Georg A"]
[Black "Biro, Sandor"]
[Result "0-1"]
[ECO "A48"]
[WhiteElo "1956"]
[BlackElo "2193"]
[Annotator "NA"]
[PlyCount "56"]
[EventDate "2018.08.04"]
[EventType "swiss"]
[EventCountry "NOR"]
[SourceTitle "playchess.com"]
[Source "ChessBase"]
[SourceQuality "1"]
[TimeControl "40/5400+30:1800+30"]

1. Nf3 {[%emt 0:00:00]} Nf6 {[%emt 0:00:30]} 2. d4 {[%emt 0:00:00]} g6 {[%emt 0:00:07]} 3. c4 {[%emt 0:00:04]} Bg7 {[%emt 0:00:09]} 4. g3 {[%emt 0:00:13]} c6 {[%emt 0:00:16]} 5. Bg2 {[%emt 0:00:57]} d5 {[%emt 0:00:06]} 6. cxd5 {[%emt 0:00:13]} cxd5 {[%emt 0:00:06]} 7. Nc3 {[%emt 0:00:32]} Ne4 {[%emt 0:00:06]} 8. Ne5 {[%emt 0:00:06]} Nxc3 {[%emt 0:00:09]} 9. bxc3 {[%emt 0:00:08]} O-O {[%emt 0:00:05]} 10. O-O {[%emt 0:00:35]} Nc6 {[%emt 0:02:45]} 11. Nxc6 {[%emt 0:00:20]} bxc6 {[%emt 0:00:07]} 12. Bf4 {[%emt 0:09:44]} Qa5 {[%emt 0:01:09]} 13. Qd2 {[%emt 0:04:13]} Ba6 {[%emt 0:02:28]} 14. Rfd1 {[%emt 0:05:38]} Rac8 {[%emt 0:04:40]} 15. e4 {[%emt 0:18:19]} dxe4 {[%emt 0:02:21]} 16. Bxe4 {[%emt 0:00:22]} c5 {[%emt 0:00:42]} 17. Be5 {[%emt 0:05:21]} f6 {[%emt 0:11:54]} 18. Bf4 {[%emt 0:00:20]} Rfd8 {[%emt 0:01:03]} 19. Qb2 {[%emt 0:18:32]} cxd4 {[%emt 0:07:16]} 20. cxd4 {[%emt 0:05:44]} Kf8 {[%emt 0:09:27]} 21. Bd3 {[%emt 0:08:42]} Bxd3 {[%emt 0:05:24]} 22. Rxd3 {[%emt 0:00:04]} Qd5 {[%emt 0:03:59]} 23. Ra3 {[%emt 0:03:50]} Rd7 {[%emt 0:06:33]} 24. Re1 {[%emt 0:03:05]} g5 {[%emt 0:15:29]} 25. Be3 {[%emt 0:00:13]} h6 {[%emt 0:00:51]} 26. Rb1 {[%emt 0:03:35]} Rdc7 {[%emt 0:03:13]} 27. Qb3 {[%emt 0:02:26]} Qd6 {[%emt 0:03:29]} 28. Qb4 {[%emt 0:01:12]} Rc1+ {[%emt 0:00:52]} 0-1

[Event "European-ch Seniors 2018"]
[Site "Drammen"]
[Date "2018.08.05"]
[Round "2"]
[White "Andersson, Kjell Ake"]
[Black "Blomstrom, Lars"]
[Result "1/2-1/2"]
[ECO "A16"]
[WhiteElo "1940"]
[BlackElo "2167"]
[Annotator "NA"]
[PlyCount "52"]
[EventDate "2018.08.04"]
[EventType "swiss"]
[EventCountry "NOR"]
[SourceTitle "playchess.com"]
[Source "ChessBase"]
[SourceQuality "1"]
[TimeControl "40/5400+30:1800+30"]

1. c4 {[%emt 0:00:00]} Nf6 {[%emt 0:00:00]} 2. Nc3 {[%emt 0:00:17]} d6 {[%emt 0:00:26]} 3. g3 g6 {[%emt 0:00:42]} 4. Bg2 {[%emt 0:02:16]} Bg7 {[%emt 0:00:02]} 5. Nf3 {[%emt 0:00:56]} O-O {[%emt 0:00:05]} 6. O-O {[%emt 0:00:42]} e5 {[%emt 0:00:18]} 7. d3 {[%emt 0:00:27]} Nc6 {[%emt 0:00:09]} 8. Rb1 {[%emt 0:00:35]} a5 {[%emt 0:00:08]} 9. a3 {[%emt 0:00:27]} Nh5 {[%emt 0:01:36]} 10. b4 {[%emt 0:01:16]} axb4 {[%emt 0:00:08]} 11. axb4 {[%emt 0:00:11]} f5 {[%emt 0:00:31]} 12. Bg5 {[%emt 0:01:33]} Bf6 {[%emt 0:19:58]} 13. Bxf6 {[%emt 0:04:28]} Nxf6 {[%emt 0:01:03]} 14. b5 {[%emt 0:01:26]} Ne7 {[%emt 0:00:56]} 15. Nd2 {[%emt 0:03:43]} Kg7 {[%emt 0:08:39]} 16. Qb3 {[%emt 0:04:31]} Rb8 {[%emt 0:05:50]} 17. Ra1 {[%emt 0:03:15]} Be6 {[%emt 0:05:14]} 18. Ra7 {[%emt 0:03:17]} b6 {[%emt 0:19:31]} 19. Qb2 {[%emt 0:04:10]} Qd7 {[%emt 0:05:56]} 20. Rfa1 {[%emt 0:05:18]} g5 {[%emt 0:11:02]} 21. d4 {[%emt 0:14:23]} exd4 {[%emt 0:09:47]} 22. Nd1 {[%emt 0:00:49]} Kg8 {[%emt 0:02:45]} 23. Qxd4 {[%emt 0:01:29]} Nc8 {[%emt 0:02:53]} 24. Bc6 {[%emt 0:01:34]} Qf7 {[%emt 0:00:09]} 25. R7a3 {[%emt 0:01:47]} Ne7 {[%emt 0:00:05]} 26. Bg2 {[%emt 0:01:37]} h6 {[%emt 0:01:58]} 1/2-1/2